[Event "*** SCC Grand Prix: Titled Tuesday Blitz"]
[Site "Chess.com"]
[Date "2020.06.02"]
[Round "7"]
[White "allvim"]
[Black "Vision_64"]
[Result "1-0"]
[WhiteElo "2302"]
[BlackElo "2142"]
[TimeControl "180+1"]
[EndTime "11:20:50 PDT"]
[Termination "allvim won by checkmate"]

1. e4 {[%clk 0:03:00.9]} 1... c5 {[%clk 0:02:59.8]} 2. Nf3 {[%clk 0:03:01]} 2...
Nc6 {[%clk 0:02:59.4]} 3. d4 {[%clk 0:02:59.2]} 3... cxd4 {[%clk 0:02:59.1]} 4.
Nxd4 {[%clk 0:03:00.1]} 4... Nf6 {[%clk 0:02:59.3]} 5. Nc3 {[%clk 0:02:59.9]}
5... e5 {[%clk 0:02:59.8]} 6. Ndb5 {[%clk 0:03:00]} 6... d6 {[%clk 0:02:59.9]}
7. Bg5 {[%clk 0:02:59.6]} 7... a6 {[%clk 0:02:59.8]} 8. Na3 {[%clk 0:03:00.3]}
8... b5 {[%clk 0:03:00]} 9. Nd5 {[%clk 0:03:01]} 9... Be7 {[%clk 0:02:59.4]} 10.
Bxf6 {[%clk 0:03:01.7]} 10... Bxf6 {[%clk 0:02:59]} 11. c3 {[%clk 0:03:02.4]}
11... O-O {[%clk 0:02:52.8]} 12. Be2 {[%clk 0:02:59.5]} 12... Bg5 {[%clk
0:02:51.9]} 13. Nc2 {[%clk 0:02:59.6]} 13... f5 {[%clk 0:02:45.4]} 14. O-O
{[%clk 0:02:39.1]} 14... fxe4 {[%clk 0:02:38.3]} 15. a4 {[%clk 0:02:39.5]} 15...
Rb8 {[%clk 0:02:25.2]} 16. axb5 {[%clk 0:02:31.3]} 16... axb5 {[%clk 0:02:25]}
17. Nce3 {[%clk 0:02:32.2]} 17... Ne7 {[%clk 0:02:16]} 18. Nxe7+ {[%clk
0:02:27.8]} 18... Qxe7 {[%clk 0:02:13.7]} 19. Nd5 {[%clk 0:02:24.9]} 19... Qf7
{[%clk 0:02:09.9]} 20. c4 {[%clk 0:02:07.5]} 20... Be6 {[%clk 0:01:57.4]} 21. b3
{[%clk 0:01:58.5]} 21... bxc4 {[%clk 0:01:38.2]} 22. Bxc4 {[%clk 0:01:59.4]}
22... Kh8 {[%clk 0:01:24.7]} 23. Ra6 {[%clk 0:01:53.8]} 23... Rbd8 {[%clk
0:01:19.7]} 24. Ne3 {[%clk 0:00:46]} 24... d5 {[%clk 0:01:12.7]} 25. Be2 {[%clk
0:00:29.8]} 25... d4 {[%clk 0:01:07.6]} 26. Nc4 {[%clk 0:00:14.6]} 26... Bf6
{[%clk 0:00:47.2]} 27. Bg4 {[%clk 0:00:11.7]} 27... Bxc4 {[%clk 0:00:43.6]} 28.
bxc4 {[%clk 0:00:12.3]} 28... Qxc4 {[%clk 0:00:44]} 29. Ra7 {[%clk 0:00:12.8]}
29... d3 {[%clk 0:00:33.7]} 30. Bf5 {[%clk 0:00:11.5]} 30... d2 {[%clk
0:00:21.2]} 31. h3 {[%clk 0:00:03.4]} 31... g6 {[%clk 0:00:14]} 32. Bxg6 {[%clk
0:00:02.2]} 32... hxg6 {[%clk 0:00:13]} 33. Kh2 {[%clk 0:00:02.8]} 33... Bg7
{[%clk 0:00:12.4]} 34. Qg4 {[%clk 0:00:02.4]} 34... Rf5 {[%clk 0:00:09.9]} 35.
Qh4+ {[%clk 0:00:02.1]} 35... Rh5 {[%clk 0:00:09.8]} 36. Qxd8+ {[%clk 0:00:03]}
36... Kh7 {[%clk 0:00:10.1]} 37. Rd1 {[%clk 0:00:02.3]} 37... Qg8 {[%clk
0:00:05.9]} 38. Qxg8+ {[%clk 0:00:02.2]} 38... Kxg8 {[%clk 0:00:05.6]} 39. Rxd2
{[%clk 0:00:02.7]} 39... Rf5 {[%clk 0:00:06.1]} 40. Rd8+ {[%clk 0:00:02.7]}
40... Kh7 {[%clk 0:00:06.1]} 41. Rdd7 {[%clk 0:00:03.1]} 41... Rxf2 {[%clk
0:00:05.7]} 42. Rxg7+ {[%clk 0:00:03.2]} 42... Kh6 {[%clk 0:00:06.6]} 43. h4
{[%clk 0:00:02.1]} 43... Kh5 {[%clk 0:00:06.7]} 44. Kh3 {[%clk 0:00:01.6]} 44...
Rf3+ {[%clk 0:00:05.5]} 45. gxf3 {[%clk 0:00:01.4]} 45... exf3 {[%clk
0:00:06.4]} 46. Rh7# {[%clk 0:00:01.8]} 1-0

[Event "*** SCC Grand Prix: Titled Tuesday Blitz"]
[Site "Chess.com"]
[Date "2020.06.02"]
[Round "7"]
[White "Konavets"]
[Black "hanzo_hasashi1"]
[Result "0-1"]
[WhiteElo "2958"]
[BlackElo "2808"]
[TimeControl "180+1"]
[EndTime "11:20:54 PDT"]
[Termination "hanzo_hasashi1 won on time"]

1. e4 {[%clk 0:03:00.9]} 1... c5 {[%clk 0:02:56.3]} 2. Nf3 {[%clk 0:03:01]} 2...
d6 {[%clk 0:02:55.7]} 3. d4 {[%clk 0:03:01.2]} 3... cxd4 {[%clk 0:02:54.9]} 4.
Nxd4 {[%clk 0:03:02.1]} 4... Nf6 {[%clk 0:02:53.6]} 5. Nc3 {[%clk 0:03:02.7]}
5... a6 {[%clk 0:02:53.1]} 6. Bg5 {[%clk 0:03:01.8]} 6... e6 {[%clk 0:02:50.1]}
7. f4 {[%clk 0:03:01.2]} 7... h6 {[%clk 0:02:46.6]} 8. Bh4 {[%clk 0:03:00.9]}
8... Qb6 {[%clk 0:02:44.8]} 9. Qd2 {[%clk 0:03:00.9]} 9... Qxb2 {[%clk
0:02:42.7]} 10. Rb1 {[%clk 0:03:01.4]} 10... Qa3 {[%clk 0:02:42.5]} 11. e5
{[%clk 0:03:01.3]} 11... dxe5 {[%clk 0:02:42]} 12. fxe5 {[%clk 0:03:02.2]} 12...
Nfd7 {[%clk 0:02:41.1]} 13. Ne4 {[%clk 0:03:01]} 13... Qxa2 {[%clk 0:02:39]} 14.
Rd1 {[%clk 0:03:01.2]} 14... b6 {[%clk 0:02:27]} 15. Bd3 {[%clk 0:02:13.2]}
15... Bb7 {[%clk 0:02:19.6]} 16. O-O {[%clk 0:02:11.9]} 16... Qd5 {[%clk
0:02:02.2]} 17. Qf2 {[%clk 0:02:00.9]} 17... Nxe5 {[%clk 0:01:58.9]} 18. Bb5+
{[%clk 0:01:29.5]} 18... Nbd7 {[%clk 0:01:51.5]} 19. Bxd7+ {[%clk 0:01:28.9]}
19... Qxd7 {[%clk 0:01:47.3]} 20. Nf5 {[%clk 0:01:29.2]} 20... Bd5 {[%clk
0:01:31.3]} 21. Qg3 {[%clk 0:01:14.4]} 21... exf5 {[%clk 0:01:25.8]} 22. Nc3
{[%clk 0:00:24.8]} 22... f4 {[%clk 0:01:15.5]} 23. Rxf4 {[%clk 0:00:18.9]} 23...
Bc5+ {[%clk 0:01:12]} 24. Kh1 {[%clk 0:00:18.3]} 24... Qb7 {[%clk 0:01:03.1]}
25. Rxd5 {[%clk 0:00:15.6]} 25... Ng6 {[%clk 0:01:01]} 26. Re4+ {[%clk
0:00:13.4]} 26... Kf8 {[%clk 0:00:58.9]} 27. Qf3 {[%clk 0:00:12.4]} 27... Kg8
{[%clk 0:00:56.1]} 28. Bg3 {[%clk 0:00:04]} 28... Kh7 {[%clk 0:00:53.5]} 29. h4
{[%clk 0:00:04.4]} 29... Rhe8 {[%clk 0:00:50.2]} 30. h5 {[%clk 0:00:03.8]} 30...
Nf8 {[%clk 0:00:47.7]} 31. Rf5 {[%clk 0:00:02.3]} 31... f6 {[%clk 0:00:43.6]}
32. Nd5 {[%clk 0:00:02.2]} 32... Rxe4 {[%clk 0:00:37.8]} 33. Qxe4 {[%clk
0:00:03.1]} 33... Kh8 {[%clk 0:00:37.3]} 34. Qg4 {[%clk 0:00:02.6]} 34... Re8
{[%clk 0:00:34.3]} 35. Kh2 {[%clk 0:00:02.4]} 35... Qc6 {[%clk 0:00:29.8]} 36.
Nf4 {[%clk 0:00:02.7]} 36... Ne6 {[%clk 0:00:25.4]} 37. Ng6+ {[%clk 0:00:02.5]}
37... Kh7 {[%clk 0:00:23.3]} 38. Bh4 {[%clk 0:00:03.4]} 38... Nd4 {[%clk
0:00:19.1]} 39. Rf1 {[%clk 0:00:02.9]} 39... f5 {[%clk 0:00:15.5]} 40. Qh3
{[%clk 0:00:03.3]} 40... Bd6+ {[%clk 0:00:13.9]} 41. Bg3 {[%clk 0:00:03.5]}
41... Re3 {[%clk 0:00:10.4]} 42. Nf4 {[%clk 0:00:02.4]} 42... Qxc2 {[%clk
0:00:06.6]} 43. Qh4 {[%clk 0:00:01]} 43... Nf3+ {[%clk 0:00:03.9]} 44. Rxf3
{[%clk 0:00:01.1]} 44... Rxf3 {[%clk 0:00:04]} 0-1

[Event "*** SCC Grand Prix: Titled Tuesday Blitz"]
[Site "Chess.com"]
[Date "2020.06.02"]
[Round "7"]
[White "bazar-wokzal"]
[Black "Munkhzul_Turmunkh"]
[Result "0-1"]
[WhiteElo "2410"]
[BlackElo "2593"]
[TimeControl "180+1"]
[EndTime "11:20:54 PDT"]
[Termination "Munkhzul_Turmunkh won by resignation"]

1. e4 {[%clk 0:03:00.9]} 1... c5 {[%clk 0:02:59.1]} 2. c3 {[%clk 0:03:00.1]}
2... Nf6 {[%clk 0:02:58]} 3. e5 {[%clk 0:02:58.2]} 3... Nd5 {[%clk 0:02:58.2]}
4. Bc4 {[%clk 0:02:57.2]} 4... Nb6 {[%clk 0:02:53.4]} 5. Bb3 {[%clk 0:02:57.3]}
5... c4 {[%clk 0:02:50.7]} 6. Bc2 {[%clk 0:02:57.6]} 6... d6 {[%clk 0:02:46.9]}
7. exd6 {[%clk 0:02:54]} 7... Qxd6 {[%clk 0:02:47.8]} 8. Nf3 {[%clk 0:02:52.7]}
8... Qe6+ {[%clk 0:02:43.3]} 9. Qe2 {[%clk 0:02:49.9]} 9... Qxe2+ {[%clk
0:02:38.1]} 10. Kxe2 {[%clk 0:02:50.3]} 10... Nc6 {[%clk 0:02:33.9]} 11. Na3
{[%clk 0:02:49.6]} 11... g6 {[%clk 0:02:24.5]} 12. Nb5 {[%clk 0:02:45.8]} 12...
Rb8 {[%clk 0:02:21.8]} 13. b3 {[%clk 0:02:41.9]} 13... a6 {[%clk 0:02:18.6]} 14.
Nbd4 {[%clk 0:02:41.4]} 14... Nxd4+ {[%clk 0:02:17]} 15. Nxd4 {[%clk 0:02:41.6]}
15... e5 {[%clk 0:02:12.5]} 16. Nf3 {[%clk 0:02:40.2]} 16... f6 {[%clk
0:02:05.3]} 17. Re1 {[%clk 0:02:31.5]} 17... Kf7 {[%clk 0:01:57.8]} 18. Kf1
{[%clk 0:02:29.8]} 18... Be6 {[%clk 0:01:54.9]} 19. Rb1 {[%clk 0:02:26.6]} 19...
Nd7 {[%clk 0:01:46.2]} 20. b4 {[%clk 0:01:54]} 20... Bd6 {[%clk 0:01:38.8]} 21.
a4 {[%clk 0:01:53.7]} 21... Rhe8 {[%clk 0:01:26.1]} 22. d4 {[%clk 0:01:43.5]}
22... cxd3 {[%clk 0:01:17.4]} 23. Bxd3 {[%clk 0:01:43.6]} 23... Rbc8 {[%clk
0:01:08.1]} 24. Bb2 {[%clk 0:01:40.5]} 24... Nb6 {[%clk 0:01:00.6]} 25. a5
{[%clk 0:01:32.6]} 25... Nc4 {[%clk 0:00:57.3]} 26. Bc1 {[%clk 0:01:32.1]} 26...
Bf8 {[%clk 0:00:45.9]} 27. Be4 {[%clk 0:01:26]} 27... Nd6 {[%clk 0:00:44]} 28.
Bb2 {[%clk 0:01:15.7]} 28... Bc4+ {[%clk 0:00:33.8]} 29. Kg1 {[%clk 0:01:14.6]}
29... Nxe4 {[%clk 0:00:31.7]} 30. Rxe4 {[%clk 0:01:14.4]} 30... Bd3 {[%clk
0:00:31.6]} 31. Rbe1 {[%clk 0:01:12]} 31... Bxe4 {[%clk 0:00:31]} 32. Rxe4
{[%clk 0:01:12.6]} 32... Red8 {[%clk 0:00:30.3]} 33. g4 {[%clk 0:01:11.3]} 33...
Rd3 {[%clk 0:00:26]} 34. Kg2 {[%clk 0:01:10.5]} 34... h6 {[%clk 0:00:20.4]} 35.
h4 {[%clk 0:01:10]} 35... Be7 {[%clk 0:00:18.9]} 36. g5 {[%clk 0:01:08.7]} 36...
hxg5 {[%clk 0:00:18.6]} 37. hxg5 {[%clk 0:01:08.5]} 37... Ke6 {[%clk 0:00:16.5]}
38. gxf6 {[%clk 0:01:08.2]} 38... Bxf6 {[%clk 0:00:17.4]} 39. c4 {[%clk
0:01:00]} 39... Kf5 {[%clk 0:00:17.3]} 40. Re2 {[%clk 0:00:56.2]} 40... Rxc4
{[%clk 0:00:16.4]} 41. Bxe5 {[%clk 0:00:56]} 41... Rxf3 {[%clk 0:00:14.2]} 42.
Bxf6 {[%clk 0:00:53.6]} 42... Rb3 {[%clk 0:00:13.9]} 43. Be7 {[%clk 0:00:51.2]}
43... Re4 {[%clk 0:00:13.3]} 44. Rxe4 {[%clk 0:00:47.7]} 44... Kxe4 {[%clk
0:00:14.2]} 45. Bc5 {[%clk 0:00:48]} 45... Rb2 {[%clk 0:00:14.1]} 46. Kg3 {[%clk
0:00:47.6]} 46... Kf5 {[%clk 0:00:14.2]} 47. Kf3 {[%clk 0:00:47.4]} 47... Rb3+
{[%clk 0:00:14.4]} 48. Kg2 {[%clk 0:00:47.4]} 48... g5 {[%clk 0:00:14.7]} 49.
Kh2 {[%clk 0:00:46.9]} 49... Ke4 {[%clk 0:00:14.5]} 50. Kg2 {[%clk 0:00:47.2]}
50... Kd5 {[%clk 0:00:14.7]} 51. Kh2 {[%clk 0:00:45.6]} 51... Kc4 {[%clk
0:00:14.8]} 52. Kg2 {[%clk 0:00:41.8]} 52... Kd5 {[%clk 0:00:13.7]} 53. f3
{[%clk 0:00:41.3]} 53... Ke6 {[%clk 0:00:13.1]} 54. Kg3 {[%clk 0:00:41.5]} 54...
Kf5 {[%clk 0:00:13.7]} 55. Be7 {[%clk 0:00:41.5]} 55... g4 {[%clk 0:00:14.1]}
56. Bc5 {[%clk 0:00:37.4]} 56... Rxf3+ {[%clk 0:00:14.7]} 57. Kg2 {[%clk
0:00:37.3]} 57... Rb3 {[%clk 0:00:14.5]} 58. Kf2 {[%clk 0:00:37]} 58... Ke4
{[%clk 0:00:15.1]} 59. Kg2 {[%clk 0:00:36.7]} 59... Kd5 {[%clk 0:00:15.6]} 60.
Kf2 {[%clk 0:00:36.4]} 60... Kc4 {[%clk 0:00:16.2]} 61. Bd6 {[%clk 0:00:36]}
61... Rxb4 {[%clk 0:00:16.7]} 0-1

[Event "*** SCC Grand Prix: Titled Tuesday Blitz"]
[Site "Chess.com"]
[Date "2020.06.02"]
[Round "7"]
[White "szachuspl"]
[Black "Boninknights"]
[Result "1-0"]
[WhiteElo "2530"]
[BlackElo "2393"]
[TimeControl "180+1"]
[EndTime "11:20:54 PDT"]
[Termination "szachuspl won on time"]

1. d4 {[%clk 0:03:00.9]} 1... Nf6 {[%clk 0:02:58.8]} 2. c4 {[%clk 0:03:00.8]}
2... e6 {[%clk 0:02:57.8]} 3. Nf3 {[%clk 0:03:00.8]} 3... a6 {[%clk 0:02:56.3]}
4. Nc3 {[%clk 0:02:52.8]} 4... c5 {[%clk 0:02:54.6]} 5. d5 {[%clk 0:02:52.6]}
5... exd5 {[%clk 0:02:52.1]} 6. cxd5 {[%clk 0:02:52.9]} 6... d6 {[%clk
0:02:50.4]} 7. a4 {[%clk 0:02:52.6]} 7... g6 {[%clk 0:02:49.3]} 8. Bf4 {[%clk
0:02:52.8]} 8... Bg7 {[%clk 0:02:45.9]} 9. e3 {[%clk 0:02:53]} 9... Bg4 {[%clk
0:02:44.1]} 10. Be2 {[%clk 0:02:52.8]} 10... Bxf3 {[%clk 0:02:41.5]} 11. Bxf3
{[%clk 0:02:53]} 11... O-O {[%clk 0:02:39.6]} 12. O-O {[%clk 0:02:52.8]} 12...
Qc7 {[%clk 0:02:36.3]} 13. a5 {[%clk 0:02:51.6]} 13... Nbd7 {[%clk 0:02:34.9]}
14. Qc2 {[%clk 0:02:50.9]} 14... b5 {[%clk 0:02:27]} 15. axb6 {[%clk 0:02:51]}
15... Qxb6 {[%clk 0:02:26.6]} 16. Ra2 {[%clk 0:02:46.5]} 16... Ne8 {[%clk
0:02:22.5]} 17. Rfa1 {[%clk 0:02:45.8]} 17... Nc7 {[%clk 0:02:20.2]} 18. h4
{[%clk 0:02:45.5]} 18... Ne5 {[%clk 0:02:09.5]} 19. Be2 {[%clk 0:02:41.2]} 19...
Rfb8 {[%clk 0:02:04.6]} 20. h5 {[%clk 0:02:38.8]} 20... a5 {[%clk 0:01:57.9]}
21. hxg6 {[%clk 0:02:33.3]} 21... hxg6 {[%clk 0:01:56]} 22. Qd1 {[%clk
0:02:22.6]} 22... Qb4 {[%clk 0:01:43.1]} 23. Bf1 {[%clk 0:01:43.5]} 23... c4
{[%clk 0:01:37.9]} 24. Bg3 {[%clk 0:01:37]} 24... Qc5 {[%clk 0:01:35.8]} 25. Ne4
{[%clk 0:01:29.7]} 25... Qxd5 {[%clk 0:01:31.4]} 26. Qxd5 {[%clk 0:01:29.2]}
26... Nxd5 {[%clk 0:01:30.3]} 27. Nxd6 {[%clk 0:01:29.9]} 27... Nb4 {[%clk
0:01:19.2]} 28. Rxa5 {[%clk 0:01:27.6]} 28... Rxa5 {[%clk 0:01:16.9]} 29. Rxa5
{[%clk 0:01:28.5]} 29... Nbd3 {[%clk 0:01:13.8]} 30. Ra7 {[%clk 0:00:57.7]}
30... Rxb2 {[%clk 0:01:03.7]} 31. Bxe5 {[%clk 0:00:50.3]} 31... Nxe5 {[%clk
0:00:47.7]} 32. Nxc4 {[%clk 0:00:49.8]} 32... Nxc4 {[%clk 0:00:44.6]} 33. Bxc4
{[%clk 0:00:49.9]} 33... Rb1+ {[%clk 0:00:41.4]} 34. Kh2 {[%clk 0:00:49.5]}
34... Be5+ {[%clk 0:00:40]} 35. g3 {[%clk 0:00:45.8]} 35... Kg7 {[%clk
0:00:34.6]} 36. Rxf7+ {[%clk 0:00:45.2]} 36... Kh6 {[%clk 0:00:34.1]} 37. Kg2
{[%clk 0:00:44.8]} 37... Rb2 {[%clk 0:00:32.3]} 38. Re7 {[%clk 0:00:42.7]} 38...
Bc3 {[%clk 0:00:30]} 39. Bd3 {[%clk 0:00:33.6]} 39... Be1 {[%clk 0:00:25.9]} 40.
Rf7 {[%clk 0:00:33.8]} 40... Kg5 {[%clk 0:00:21.7]} 41. Rf4 {[%clk 0:00:28.2]}
41... Bc3 {[%clk 0:00:18.2]} 42. Kf3 {[%clk 0:00:25.2]} 42... Be1 {[%clk
0:00:16.1]} 43. Kg2 {[%clk 0:00:21]} 43... Bd2 {[%clk 0:00:14]} 44. Be4 {[%clk
0:00:19.7]} 44... Bxe3 {[%clk 0:00:12]} 45. Rf3 {[%clk 0:00:17]} 45... Bd4
{[%clk 0:00:11.1]} 46. Bd3 {[%clk 0:00:17.1]} 46... Kh6 {[%clk 0:00:10.1]} 47.
Rf4 {[%clk 0:00:16.2]} 47... Be3 {[%clk 0:00:07.5]} 48. Rf6 {[%clk 0:00:15.9]}
48... Kg7 {[%clk 0:00:04.2]} 49. Rxg6+ {[%clk 0:00:16]} 49... Kf7 {[%clk
0:00:03.9]} 50. Rg4 {[%clk 0:00:15.8]} 50... Rxf2+ {[%clk 0:00:02.7]} 51. Kh3
{[%clk 0:00:16.3]} 51... Rd2 {[%clk 0:00:01.7]} 52. Be4 {[%clk 0:00:15.9]} 1-0

[Event "*** SCC Grand Prix: Titled Tuesday Blitz"]
[Site "Chess.com"]
[Date "2020.06.02"]
[Round "7"]
[White "CrushingKings"]
[Black "Gerodot71"]
[Result "1-0"]
[WhiteElo "2509"]
[BlackElo "2367"]
[TimeControl "180+1"]
[EndTime "11:20:54 PDT"]
[Termination "CrushingKings won on time"]

1. e4 {[%clk 0:03:00.9]} 1... e5 {[%clk 0:02:59.6]} 2. Nf3 {[%clk 0:03:01]} 2...
Nc6 {[%clk 0:02:59.3]} 3. Bc4 {[%clk 0:03:01.4]} 3... Nf6 {[%clk 0:02:58.7]} 4.
d3 {[%clk 0:03:01.7]} 4... h6 {[%clk 0:02:58.1]} 5. O-O {[%clk 0:03:01.7]} 5...
g5 {[%clk 0:02:56.4]} 6. d4 {[%clk 0:03:01.1]} 6... d6 {[%clk 0:02:41.7]} 7.
dxe5 {[%clk 0:02:58.8]} 7... dxe5 {[%clk 0:02:18]} 8. Qxd8+ {[%clk 0:02:58.6]}
8... Kxd8 {[%clk 0:02:18.9]} 9. Bxf7 {[%clk 0:02:55.9]} 9... Nxe4 {[%clk
0:02:18.7]} 10. Bd5 {[%clk 0:02:53.3]} 10... Nf6 {[%clk 0:02:05.3]} 11. Bxc6
{[%clk 0:02:52]} 11... bxc6 {[%clk 0:02:06.2]} 12. Nxe5 {[%clk 0:02:52.6]} 12...
Be6 {[%clk 0:02:03.5]} 13. Re1 {[%clk 0:02:44.3]} 13... Bd6 {[%clk 0:01:57.7]}
14. Nxc6+ {[%clk 0:02:39.8]} 14... Kd7 {[%clk 0:01:57.8]} 15. Nd4 {[%clk
0:02:40]} 15... Bf7 {[%clk 0:01:54.3]} 16. Nc3 {[%clk 0:02:31.7]} 16... Rhe8
{[%clk 0:01:49.3]} 17. Be3 {[%clk 0:02:30.8]} 17... Rab8 {[%clk 0:01:46.6]} 18.
Ndb5 {[%clk 0:02:28]} 18... a6 {[%clk 0:01:32]} 19. Nxd6 {[%clk 0:02:28.2]}
19... cxd6 {[%clk 0:01:32.9]} 20. b3 {[%clk 0:02:28.8]} 20... Nd5 {[%clk
0:01:28.3]} 21. Nxd5 {[%clk 0:02:25]} 21... Bxd5 {[%clk 0:01:29.2]} 22. c4
{[%clk 0:02:25.2]} 22... Bb7 {[%clk 0:01:26.5]} 23. Rad1 {[%clk 0:02:25.3]}
23... Kc7 {[%clk 0:01:19]} 24. Rd2 {[%clk 0:02:22.9]} 24... Rbd8 {[%clk
0:01:14.2]} 25. Red1 {[%clk 0:02:23]} 25... Re4 {[%clk 0:01:08.9]} 26. Bd4
{[%clk 0:01:48.8]} 26... Rde8 {[%clk 0:01:06.6]} 27. f3 {[%clk 0:01:26.4]} 27...
Re2 {[%clk 0:01:05.1]} 28. Bf2 {[%clk 0:01:26.7]} 28... Rxd2 {[%clk 0:00:39.8]}
29. Rxd2 {[%clk 0:01:27.6]} 29... h5 {[%clk 0:00:40.7]} 30. Bg3 {[%clk
0:01:27.4]} 30... g4 {[%clk 0:00:31.5]} 31. Rxd6 {[%clk 0:01:16.2]} 31... Kc8
{[%clk 0:00:14.6]} 32. Kf2 {[%clk 0:01:11]} 32... Rf8 {[%clk 0:00:13.2]} 33. Rd3
{[%clk 0:01:05]} 33... Re8 {[%clk 0:00:09]} 34. Re3 {[%clk 0:01:03.8]} 34... Rd8
{[%clk 0:00:08.5]} 35. Ke2 {[%clk 0:00:54.6]} 35... a5 {[%clk 0:00:08.6]} 36.
Bh4 {[%clk 0:00:49.9]} 36... Rf8 {[%clk 0:00:06.3]} 37. Be7 {[%clk 0:00:46.3]}
37... Rg8 {[%clk 0:00:05.6]} 38. Kf2 {[%clk 0:00:41.1]} 38... a4 {[%clk
0:00:04.7]} 39. f4 {[%clk 0:00:38.7]} 39... axb3 {[%clk 0:00:04.3]} 40. axb3
{[%clk 0:00:39.6]} 40... Bc6 {[%clk 0:00:04.2]} 41. f5 {[%clk 0:00:39.4]} 41...
Kd7 {[%clk 0:00:04.3]} 42. f6 {[%clk 0:00:39.7]} 42... Ke8 {[%clk 0:00:04.1]}
43. Kg3 {[%clk 0:00:38]} 43... Kf7 {[%clk 0:00:04]} 44. b4 {[%clk 0:00:37.6]}
44... Kg6 {[%clk 0:00:02.7]} 45. b5 {[%clk 0:00:37.7]} 45... Bb7 {[%clk
0:00:03.1]} 46. c5 {[%clk 0:00:37.6]} 46... h4+ {[%clk 0:00:03.1]} 47. Kxh4
{[%clk 0:00:37]} 47... Bxg2 {[%clk 0:00:03.6]} 48. Kxg4 {[%clk 0:00:36.2]} 48...
Kf7+ {[%clk 0:00:03.1]} 49. Kf4 {[%clk 0:00:35.9]} 49... Bh3 {[%clk 0:00:02.6]}
50. c6 {[%clk 0:00:35.4]} 50... Rg4+ {[%clk 0:00:01.9]} 51. Ke5 {[%clk
0:00:34.6]} 51... Rg8 {[%clk 0:00:02.8]} 52. Kd6 {[%clk 0:00:34.6]} 52... Be6
{[%clk 0:00:03.5]} 53. Rxe6 {[%clk 0:00:34]} 53... Re8 {[%clk 0:00:03.9]} 54.
Kd7 {[%clk 0:00:32.4]} 54... Ra8 {[%clk 0:00:03.3]} 55. c7 {[%clk 0:00:32.6]}
1-0

[Event "*** SCC Grand Prix: Titled Tuesday Blitz"]
[Site "Chess.com"]
[Date "2020.06.02"]
[Round "7"]
[White "AlexOstrovskiy"]
[Black "OrtizMarcos"]
[Result "1-0"]
[WhiteElo "2525"]
[BlackElo "2329"]
[TimeControl "180+1"]
[EndTime "11:20:56 PDT"]
[Termination "AlexOstrovskiy won on time"]

1. d4 {[%clk 0:03:00.9]} 1... Nf6 {[%clk 0:02:59.5]} 2. Bf4 {[%clk 0:03:00.7]}
2... d6 {[%clk 0:02:59]} 3. Nc3 {[%clk 0:03:00.3]} 3... Nbd7 {[%clk 0:02:58.5]}
4. Nf3 {[%clk 0:02:59.9]} 4... c6 {[%clk 0:02:57.3]} 5. e4 {[%clk 0:02:56.8]}
5... Qa5 {[%clk 0:02:51.5]} 6. Qd2 {[%clk 0:02:50]} 6... e5 {[%clk 0:02:50.2]}
7. Bg5 {[%clk 0:02:30.2]} 7... b5 {[%clk 0:02:39.2]} 8. Bd3 {[%clk 0:02:22.6]}
8... b4 {[%clk 0:02:31.7]} 9. Ne2 {[%clk 0:02:22.5]} 9... Be7 {[%clk 0:02:12.9]}
10. O-O {[%clk 0:02:18.7]} 10... O-O {[%clk 0:02:03.4]} 11. a3 {[%clk
0:02:18.8]} 11... Rb8 {[%clk 0:01:57.5]} 12. axb4 {[%clk 0:01:58.9]} 12... Qxb4
{[%clk 0:01:58.4]} 13. Qxb4 {[%clk 0:01:59.1]} 13... Rxb4 {[%clk 0:01:57.3]} 14.
b3 {[%clk 0:01:56.4]} 14... Rb7 {[%clk 0:01:38.2]} 15. h3 {[%clk 0:01:49.8]}
15... Re8 {[%clk 0:01:27.6]} 16. Be3 {[%clk 0:01:35.4]} 16... c5 {[%clk
0:01:21.7]} 17. dxe5 {[%clk 0:01:33.1]} 17... Nxe5 {[%clk 0:01:13.9]} 18. Nxe5
{[%clk 0:01:31.9]} 18... dxe5 {[%clk 0:01:14.8]} 19. Ra5 {[%clk 0:01:28.8]}
19... Bd8 {[%clk 0:01:04.8]} 20. Rxc5 {[%clk 0:01:10.5]} 20... Bb6 {[%clk
0:01:05]} 21. Rb5 {[%clk 0:01:05.9]} 21... Bd7 {[%clk 0:00:57.5]} 22. Rb4 {[%clk
0:00:59.7]} 22... Bc6 {[%clk 0:00:47.8]} 23. Bxb6 {[%clk 0:00:58.2]} 23... Rxb6
{[%clk 0:00:43.2]} 24. Rxb6 {[%clk 0:00:55.4]} 24... axb6 {[%clk 0:00:44.1]} 25.
f3 {[%clk 0:00:47.7]} 25... Ra8 {[%clk 0:00:42.1]} 26. Kf2 {[%clk 0:00:47.7]}
26... Kf8 {[%clk 0:00:39.9]} 27. Ke3 {[%clk 0:00:47.9]} 27... Ke7 {[%clk
0:00:40.3]} 28. g4 {[%clk 0:00:48.2]} 28... h6 {[%clk 0:00:39.8]} 29. h4 {[%clk
0:00:48.4]} 29... Nd7 {[%clk 0:00:32.6]} 30. b4 {[%clk 0:00:46]} 30... Ra3
{[%clk 0:00:28.4]} 31. h5 {[%clk 0:00:36.2]} 31... Nf8 {[%clk 0:00:27.6]} 32.
Ng3 {[%clk 0:00:36.1]} 32... Ne6 {[%clk 0:00:25.1]} 33. Nf5+ {[%clk 0:00:35.5]}
33... Kf6 {[%clk 0:00:24.9]} 34. Kd2 {[%clk 0:00:31.4]} 34... Nf4 {[%clk
0:00:22.7]} 35. Rb1 {[%clk 0:00:26.2]} 35... Nxd3 {[%clk 0:00:10.9]} 36. cxd3
{[%clk 0:00:25.8]} 36... Bb5 {[%clk 0:00:11.5]} 37. Rb2 {[%clk 0:00:08.5]} 37...
Rxd3+ {[%clk 0:00:11.6]} 38. Kc1 {[%clk 0:00:04.6]} 38... Rxf3 {[%clk
0:00:11.5]} 39. Rc2 {[%clk 0:00:03.4]} 39... Rf4 {[%clk 0:00:07.6]} 40. Rc7
{[%clk 0:00:03.1]} 40... Rxe4 {[%clk 0:00:05.7]} 41. Rb7 {[%clk 0:00:03.5]}
41... Rxg4 {[%clk 0:00:03.5]} 42. Rxb6+ {[%clk 0:00:03.5]} 42... Kxf5 {[%clk
0:00:03.6]} 43. Rxb5 {[%clk 0:00:03.6]} 43... f6 {[%clk 0:00:03.6]} 44. Rb7
{[%clk 0:00:03.6]} 44... Rc4+ {[%clk 0:00:01.7]} 45. Kd2 {[%clk 0:00:03.5]}
45... Ke4 {[%clk 0:00:01.6]} 46. b5 {[%clk 0:00:03.7]} 1-0